Cogmind - Beta 10.2 @@@ ROGUE MODE // 2020.11.18 @ 19:26:25 Player: JollyJavelin Result: Self-destructed Performance ------------- Evolutions (1) 500 Regions Visited (3) 600 Robots Destroyed (15) 75 Value Destroyed (177) 177 Prototype IDs (0) 0 Alien Tech Used (0) 0 Bonus (84) 84 TOTAL SCORE: 1436 Bonus ------- Follower Combat Kills 92 Friendly Fire -8 Cogmind --------- Core Integrity 371/400 Matter 295/300 Energy 160/160 System Corruption 0% Temperature Cool (0) Movement Walking (150) Ox1 Location -9/Materials Parts ------- > --- POWER (1) -------- Light Nuclear Core > --- PROPULSION (3) --- Aluminum Leg Aluminum Leg > --- UTILITY (3) ------ Large Storage Unit Large Storage Unit > --- WEAPON (2) ------- Light Assault Rifle > --- INVENTORY (16) --- Ion Engine Light Ion Engine Improved Hover Unit Flight Unit Flight Unit Flight Unit Cooling System Medium Storage Unit Medium Storage Unit High-capacity Storage Unit Large Battery (300) Core Shielding Weapon Shielding Assault Rifle Grenade Launcher Datajack Peak State ------------ > --- POWER ------------ Light Nuclear Core > --- PROPULSION ------- Aluminum Leg Aluminum Leg > --- UTILITY ---------- Large Storage Unit Large Storage Unit > --- WEAPON ----------- Light Assault Rifle Grenade Launcher > --- INVENTORY -------- Ion Engine Light Ion Engine Flight Unit Flight Unit Flight Unit Cooling System Medium Storage Unit Medium Storage Unit Large Battery Core Shielding Weapon Shielding Assault Rifle Grenade Launcher [Rating: 10] Favorites ----------- Power Ion Engine Engine Ion Engine Power Core Light Nuclear Core Propulsion Aluminum Leg Leg Aluminum Leg Utility Large Storage Unit Storage Large Storage Unit Weapon Grenade Launcher Ballistic Gun Light Assault Rifle Launcher Grenade Launcher Build | -11 -10 -10 -9 ------- Run | Scr Mat Min Mat Slots Evolved 2 | . . . 2 Power . | . . . . Propulsion 1 | . . . 1 Utility 1 | . . . 1 Weapon . | . . . . Parts Attached 11 | 4 5 2 . Power 2 | 1 . 1 . Engine 1 | 1 . . . Core 1 | . . 1 . Reactor . | . . . . Propulsion 2 | 2 . . . Treads . | . . . . Leg 2 | 2 . . . Wheel . | . . . . Hover . | . . . . Flight . | . . . . Utility 3 | 1 2 . . Device . | . . . . Storage 3 | 1 2 . . Processor . | . . . . Hackware . | . . . . Protection . | . . . . Artifact . | . . . . Weapon 4 | . 3 1 . Energy Gun . | . . . . Energy Cannon . | . . . . Ballistic Gun 3 | . 2 1 . Ballistic Cannon . | . . . . Launcher 1 | . 1 . . Special Weapon . | . . . . Impact Weapon . | . . . . Slashing Weapon . | . . . . Piercing Weapon . | . . . . Special Melee Weapon . | . . . . Unidentified Prototypes . | . . . . Parts Lost 1 | . . . 1 Power . | . . . . Propulsion . | . . . . Utility . | . . . . Weapon 1 | . . . 1 Highest Loss Streak 1 | . . . 1 Average Slot Usage (%) 84 | . 86 88 76 Engine 9 | . 14 10 . Core 3 | . . 3 11 Leg 26 | . 28 28 22 Storage 21 | . 16 28 22 Ballistic Gun 11 | . 17 3 11 Launcher 11 | . 9 14 10 Naked Turns . | . . . . Heaviest Build 42 | 9 42 41 41 Greatest Support 20 | 20 20 20 20 Greatest Overweight (x) 2 | . 2 2 2 Average Overweight (x) . | . . 1 2 Largest Inventory Capacity 16 | 6 16 16 16 Average Capacity 12 | 5 7 16 16 Most Carried 16 | 4 10 14 16 Average Carried 10 | 3 6 12 15 Final Capacity 16 | 6 16 16 16 Final Carried 16 | 4 10 14 16 Class Distribution -------------------- 100% | Mutant Dominant Class ---------------- Mutant | -10/Materials Mutant | -10/Mines Mutant | -9/Materials Resources | -11 -10 -10 -9 ----------- Run | Scr Mat Min Mat Matter Collected 471 | 240 42 123 66 Remotely . | . . . . Salvage Created 228 | . 42 90 96 Parts 31 | . 7 14 10 Haulers Intercepted 2 | . 1 . 1 Recyclers Shooed . | . . . . Parts Field Recycled . | . . . . Retrieved Matter . | . . . . Parts Self-Destructed . | . . . . Prevented . | . . . . Kills | -11 -10 -10 -9 ------- Run | Scr Mat Min Mat Combat Hostiles Destroyed 9 | . . 6 3 AOE 9 | . . 6 3 Classes Destroyed 7 | . 2 1 4 Worker 1 | . . . 1 Builder 1 | . . . 1 Tunneler 1 | . . . 1 Hauler 2 | . 1 . 1 Watcher 1 | . 1 . . Swarmer 8 | . . 6 2 Grunt 1 | . . . 1 Best Kill Streak 3 | . 1 3 3 Combat Bots Only 3 | . . 3 2 Max Kills in Single Turn 3 | . 1 3 2 Gunslinging . | . . . . Exploded 3 | . . 3 2 Melee . | . . . . Uniques/NPCs Destroyed . | . . . . Combat | -11 -10 -10 -9 -------- Run | Scr Mat Min Mat Damage Taken 291 | . 48 66 177 Core 36 | . . 7 29 Absorbed by Shields . | . . . . Core Remaining (%) 98 | 100 . 97 . Volleys Fired 31 | . 5 9 17 Largest 1 | . 1 1 1 Hottest 30 | . 30 30 30 Shots Fired 31 | . 5 9 17 Gun 16 | . . 5 11 Cannon . | . . . . Launcher 15 | . 5 4 6 Special . | . . . . Kinetic 16 | . . 5 11 Thermal . | . . . . Explosive 15 | . 5 4 6 Electromagnetic . | . . . . Robot Hit Streak 5 | . 2 5 5 Robot Miss Streak 1 | . 1 1 1 Penetration Max . | . . . . Secondary Targets . | . . . . Shots Hit Robots 20 | . 2 7 11 Core Hits 24 | . 4 8 12 Critical Hits . | . . . . Critical Kills . | . . . . Critical Parts Destroyed . | . . . . Melee Attacks . | . . . . Impact . | . . . . Slashing . | . . . . Piercing . | . . . . Sneak Attacks . | . . . . Combat Hostiles . | . . . . Follow-up Attacks . | . . . . Damage Inflicted 1179 | . 145 377 657 Guns 115 | . . 40 75 Cannons . | . . . . Explosions 1055 | . 145 337 573 Melee . | . . . . Ramming 9 | . . . 9 Kinetic 115 | . . 40 75 Thermal . | . . . . Explosive 1055 | . 145 337 573 Electromagnetic . | . . . . Impact . | . . . . Slashing . | . . . . Piercing . | . . . . Highest Corruption . | . . . . Average Corruption . | . . . . Corruption Purged . | . . . . Overload Shots . | . . . . Overflow Damage 19 | . . . 19 Projectiles . | . . . . Explosions 19 | . . . 19 Melee . | . . . . Knockbacks . | . . . . Impact . | . . . . Kinetic . | . . . . Secondary . | . . . . Self-Inflicted Damage 66 | . 52 . 14 Shots 4 | . 3 . 1 Rammed 1 | . . . 1 Targets Rammed 3 | . . . 3 Kicked 2 | . . . 2 Crushed . | . . . . Highest Temperature 8 | . . 4 8 Average Temperature 4 | . . 2 8 Received Heat Transfer 66 | . . 9 57 Siege Activations . | . . . . Robots Corrupted . | . . . . Combat Hostiles . | . . . . Parts Fried . | . . . . Impact Corruptions . | . . . . Robots Melted . | . . . . Combat Hostiles . | . . . . Parts Melted . | . . . . Heat Transferred . | . . . . Parts Sabotaged . | . . . . Parts Stolen . | . . . . Parts Stripped . | . . . . Power Chain Reactions . | . . . . Missiles Intercepted . | . . . . Alert | -11 -10 -10 -9 ------- Run | Scr Mat Min Mat Peak Influence 255 | . 52 177 255 Initial 68 | . . 2 68 Average 70 | . 17 106 127 Maximum Alert Level 1 | . . . 1 Low Security (%) 92 | 100 100 100 68 Level 1 7 | . . . 31 Level 2 . | . . . . Level 3 . | . . . . Level 4 . | . . . . Level 5 . | . . . . High Security . | . . . . Max Security . | . . . . Squads Dispatched 1 | . . . 1 Investigation . | . . . . Extermination . | . . . . Reinforcement 1 | . . . 1 Assault . | . . . . Garrison . | . . . . Intercept . | . . . . Construction Impeded . | . . . . Haulers Reinforced . | . . . . Stealth | -11 -10 -10 -9 --------- Run | Scr Mat Min Mat Distress Signals 3 | . . . 3 Communications Jammed . | . . . . Distress Signals . | . . . . Times Spotted 25 | . 2 8 15 Peak Tracking Total 5 | . 1 5 5 Tactical Retreats 1 | . . . 1 Traps | -11 -10 -10 -9 ------- Run | Scr Mat Min Mat Traps Triggered 1 | . 1 . . Indirectly . | . . . . Trap Hack Attempts . | . . . . Triggered . | . . . . Disarmed . | . . . . Reprogrammed . | . . . . Reused . | . . . . Traps Extracted . | . . . . Installed . | . . . . Triggered . | . . . . Machines | -11 -10 -10 -9 ---------- Run | Scr Mat Min Mat Machines Disabled 3 | . 2 . 1 Max in Single Turn 2 | . 2 . 1 Machines Sabotaged . | . . . . Garrisons Compromised . | . . . . Overloaded Fab Kills . | . . . . Fab Network Shutdowns . | . . . . Hacking | -11 -10 -10 -9 --------- Run | Scr Mat Min Mat Machines Accessed . | . . . . Terminals . | . . . . Fabricators . | . . . . Repair Stations . | . . . . Recycling Units . | . . . . Scanalyzers . | . . . . Garrison Access . | . . . . Total Hacks . | . . . . Successful . | . . . . Failed . | . . . . Catastrophic . | . . . . Database Lockouts . | . . . . Manual 3 | . 3 . . Terminals . | . . . . Fabricators . | . . . . Repair Stations . | . . . . Recycling Units . | . . . . Scanalyzers . | . . . . Garrison Access . | . . . . Terminal Hacks . | . . . . Fabricator Hacks . | . . . . Repair Station Hacks . | . . . . Recycling Unit Hacks . | . . . . Scanalyzer . | . . . . Garrison Access Hacks . | . . . . Unauthorized Hacks . | . . . . Terminals . | . . . . Fabricators . | . . . . Repair Stations . | . . . . Recycling Units . | . . . . Scanalyzers . | . . . . Garrison Access . | . . . . Data Cores Recovered . | . . . . Used . | . . . . Hacking Detections 1 | . 1 . . Full Trace Events . | . . . . Feedback Events . | . . . . Feedback Blocked . | . . . . Robot Schematics Acquired . | . . . . Robots Built . | . . . . Matter . | . . . . Time . | . . . . Total Robot Build Rating . | . . . . Part Schematics Acquired . | . . . . Parts Built . | . . . . Matter . | . . . . Time . | . . . . Total Part Build Rating . | . . . . Parts Repaired . | . . . . Time . | . . . . Parts Recycled . | . . . . Recycled Matter . | . . . . Retrieved Matter . | . . . . Retrieved Components . | . . . . Parts Scanalyzed . | . . . . Part Schematics Acquired . | . . . . Parts Damaged . | . . . . Bothacking | -11 -10 -10 -9 ------------ Run | Scr Mat Min Mat Used RIF Installer . | . . . . Robots Hacked . | . . . . Non-combat . | . . . . Combat . | . . . . Robot Hacks Applied . | . . . . Relay Couplers Released . | . . . . Robots Rewired . | . . . . Allies Hacked . | . . . . Hacks Repelled . | . . . . Allies | -11 -10 -10 -9 -------- Run | Scr Mat Min Mat Total Allies 3 | . . 3 . Largest Group 3 | . . 3 2 Highest-Rated Group 40 | . . 40 32 Highest-Rated Ally 16 | . . 16 16 Total Orders . | . . . . Ally Attacks 35 | . . 5 30 Total Damage 371 | . . 38 333 Kills 6 | . . 1 5 Allies Corrupted . | . . . . Allies Melted . | . . . . Intel | -11 -10 -10 -9 ------- Run | Scr Mat Min Mat Robot Analysis Total . | . . . . Derelict Logs Recovered . | . . . . Drone Launches . | . . . . Drone Recoveries . | . . . . Exploration | -11 -10 -10 -9 ------------- Run | Scr Mat Min Mat Turns Passed 1245 | 56 512 379 298 Spaces Moved 790 | 46 382 221 141 Core 15 | 15 . . . Treads . | . . . . Legs 775 | 31 382 221 141 Wheels . | . . . . Hover . | . . . . Flight . | . . . . Fastest Speed 50 | 50 120 150 180 Average Speed 142 | 97 125 155 180 Slowest Speed 180 | 120 180 180 180 Overloaded Moves . | . . . . Propulsion Burnouts . | . . . . Robots Hopped . | . . . . Cave-ins Triggered . | . . . . Exploration Rate (%) 29 | 4 38 56 20 Regions Visited 3 Branch Regions 1 Pre-discovered Areas . | . . . . Known Exits Taken . | . . . . Unknown Exits Taken 3 | 1 1 1 . Scrap Searched 1 | . . 1 . Spaces Dug . | . . . . Terrain Destroyed 98 | . 37 24 37 Melee . | . . . . Projectile . | . . . . AOE 98 | . 37 24 37 Terrain Rammed . | . . . . Walls Destroyed . | . . . . Machines Disabled . | . . . . Actions | -11 -10 -10 -9 --------- Run | Scr Mat Min Mat Total 883 | 57 411 247 168 Wait 13 | . 1 7 5 Move 787 | 45 381 220 141 Hop . | . . . . Pick Up 29 | 8 14 5 2 Fast Attach . | . . . . Attach 8 | 4 3 1 . Detach . | . . . . Swap 3 | . 2 1 . Drop 5 | . 5 . . Fire 31 | . 5 9 17 Melee . | . . . . Ram . | . . . . Kick 3 | . . . 3 Crush . | . . . . Escape Stasis . | . . . . Rewire 4 | . . 4 . Trap . | . . . . Miscellaneous . | . . . . Route ------- -11/Scrapyard -10/Materials -10/Mines -9/Materials History --------- Turn | Location | Event 6 | -11/Scrapyard | Discovered new exit (range 16) 57 | -11/Scrapyard | Entered Materials 310 | -10/Materials | Build established: Mutant 411 | -10/Materials | Discovered new exit (range 8) 569 | -10/Materials | Entered Mines 616 | -10/Mines | Assisted by bots powering up and referring to "LRC-V3" 924 | -10/Mines | Discovered new exit (range 14) 948 | -10/Mines | Entered Materials 948 | -9/Materials | Accompanied by 2 allies 948 | -9/Materials | Evolved 2 slots: Propulsion x1, Utility x1 1246 | -9/Materials | Self-destructed Last Messages --------------- 01215_ R-06 Scavenger collects Imp. Heat Sink. 01215_ K-01 Serf collects debris. 01216_ U-05 Engineer lays Concrete. 01217_ A-02 Transporter destroyed. 01217_ K-01 Serf destroyed. 01218_ U-05 Engineer lays Concrete. 01221_ Acquired 12 matter. 01223_ Destroyed Hover Unit. 01224_ Acquired 1 matter. 01232_ W-16 Scout sends out distress signal. 01232_ U-05 Engineer builds a Door. 01237_ U-05 Engineer lays Concrete. 01237_ Grenade Launcher destroyed. 01237_ K-01 Serf destroyed. 01238_ U-05 Engineer lays Concrete. 01240_ K-01 Serf collects debris. 01241_ U-05 Engineer builds a Wall. 01243_ K-01 Serf collects debris. 01245_ U-05 Engineer lays Concrete. 01246_ U-05 Engineer builds a Wall. Map ----- +----------------------------------------------------+ | ?????????????????????????????????????????????????? | | ?????????????????????????????????????????????????? | | ?????????????????????????????????????????????????? | | ?????????????????????????????????????????????????? | | ?????????????????????????????????????????????????? | | ?????????????????????????????????????????????????? | | ?????????????????????????????????????????????????? | | ?????????????????????????????????????????????????? | | ??????? ???????????????????????????????????????? | | ??? ? ???????????????????????????????????????? | | ???" ???????????????????????????????????????? | | ?""" #??????????????????????????????????????? | | """ #??????????????????????????????????????? | | +??????????????????????????????????????? | | #??????????????????????????????????????? | | #??????????????????????????????????????? | | #??????????????????????????????????????? | | #??????????????????????????????????????? | | ##########?????????????????????????????? | | # #?????????????????????????????? | | """ # """ #?????????????????????????????? | | R" # """ ##????????????????????????????? | | """ + "" ###???????????????????????????? | | % # "% =# ######?????######???????????? | | % =# *%####= ##=^ ????????? | | ####%= # u *[/au%k%@%[[^Y g g ????????? | | ???##=#=! # ![####% ##!%= ????????? | | ???##! !%%# %###########+#######???????????? | | ??# #%# #### ## # #??# #?????????????????? | | ??##### ##?########??# #?????????????????? | | ???#### ##?????####### #?????????????????? | | ?????# ####### # #?????????????????? | | ?????# # #?????????????????? | | ?????# + #?????????????????? | | ?????# # #?????????????????? | | ?????# ####### # #?????????????????? | | ?????#######?????## ## #?????????????????? | | ??????????????????# ## #?????????????????? | | ??????????????????# ## =#?????????????????? | | ??????????????????# ##########?????????????????? | | ??????????????????# #??????????????????????????? | | ??????????????????# #??????????????????????????? | | ??????????????????# ########???????????????????? | | ???????????######## # #???????????????????? | | ???????????# # # """ #???????????????????? | | ???????????# """ # # """ #???????????????????? | | ???????????# """ + + """ #???????????????????? | | ???????????# """ # # #???????????????????? | | ???????????# # # #???????????????????? | | ???????????# [# ########???????????????????? | +----------------------------------------------------+ Best States ------------- Heat Dissipation 28 Energy Generation 14 Energy Capacity 250 Matter Stores 300 Matter Capacity 300 Sight Range 16 Terrain Scan Density 10 Evasion (%) 50 Item Schematics ----------------- None Robot Schematics ------------------ None Fabricated ------------ Nothing Alien Tech Used ----------------- None Achievements -------------- None Challenges ------------ None Game ------ Seed IntegritySpikedPod Manual? 0 Play Time 00:13:25 Cumulative 5.9 hours Start 2020.11.16 @ 19:52:07 End 2020.11.18 @ 19:26:25 Sessions 3 Manual Loads 0 Difficulty Rogue Special Mode None Game No. 10 Rogue 9 Adventurer 1 Explorer 0 Win Type - Total 0 Types 0/0/0/0/0/0/0/0/0 Lore% 5 Gallery% 10 Achievement% 11 Wizard Run 0 Options --------- ASCII 0 Keyboard 1 Movement Numpad Keybinds 0 Fullscreen 2 Font 16/SmallcapsGlow Map View 76x50 Tactical HUD 1 Map Filters NONE Filters NONE Steam 1 RUN: 7b912f3d-8fcf-4c6b-9cbf-c814abc1bd35